Workbook

Sheet C1
A1: CUADRO 1
A2: COSTA RICA: PARTCIPACIÓN Y ABSTENCIONISMO EN LAS ELECCIONES PRESIDENCIALES, SEGÚN SEXO, 1982 - 2018
A3: (CIFRAS ABSOLUTAS Y RELATIVAS)
A4: SEXO | B4: AÑO ELECTORAL
B5: 1982 | C5: 1986 | D5: 1990 | E5: 1994 | F5: 1998 | G5: 2002 | H5: 2006 | I5: 2010 | J5: 2014 | K5: 2018
A6: ELECTORADO
A7: TOTAL | B7: =+B8+B9 -> 1261127 | C7: =+C8+C9 -> 1486474 | D7: 1692050 | E7: 1881348 | F7: 2045980 | G7: 2279851 | H7: 2550613 | I7: 2822491 | J7: 3078321 | K7: 3322329
A8: HOMBRES | B8: 642551 | C8: 749153 | D8: 848728 | E8: 941405 | F8: 1027444 | G8: 1141698 | H8: 1275056 | I8: 1409411 | J8: 1535869 | K8: 1655105
A9: MUJERES | B9: 618576 | C9: 737321 | D9: 843322 | E9: 939943 | F9: 1018536 | G9: 1138153 | H9: 1275557 | I9: 1413080 | J9: 1542452 | K9: 1667224
A10: VOTOS RECIBIDOS
A11: TOTAL | B11: =+B12+B13 -> 991679 | C11: =+C12+C13 -> 1216300 | D11: 1384326 | E11: 1525979 | F11: 1431913 | G11: 1569418 | H11: 1662857 | I11: 1950847 | J11: 2099219 | K11: 2182764
A12: HOMBRES | B12: 514877 | C12: 620340 | D12: 699642 | E12: 757188 | F12: 699980 | G12: 756111 | H12: 788722 | I12: 928093 | J12: 1000761 | K12: 1028385
A13: MUJERES | B13: 476802 | C13: 595960 | D13: 684684 | E13: 768791 | F13: 731933 | G13: 813307 | H13: 874135 | I13: 1022754 | J13: 1098458 | K13: 1154379
A14: PARTICIPACIÓN RELATIVA
A15: TOTAL | B15: =+B11/B7*100 -> 78.63434848 | C15: =+C11/C7*100 -> 81.82450551 | D15: 81.81353979 | E15: 81.11093748 | F15: =+F11/F7*100 -> 69.98665676 | G15: 68.83862147 | H15: 65.19440621 | I15: 69.11791747 | J15: 68.19363543 | K15: 65.6998148
A16: HOMBRES | B16: =+B12/B8*100 -> 80.13013753 | C16: =+C12/C8*100 -> 82.80551503 | D16: 82.43418386 | E16: 80.43169518 | F16: =+F12/F8*100 -> 68.12828728 | G16: 66.22688312 | H16: 61.85783213 | I16: 65.84970601 | J16: 65.15926814 | K16: 62.13412442
A17: MUJERES | B17: =+B13/B9*100 -> 77.08058509 | C17: 80.82775345 | D17: 81.18891716 | E17: 81.79123628 | F17: =+F13/F9*100 -> 71.86127933 | G17: 71.4584946 | H17: 68.52966978 | I17: 72.37764316 | J17: 71.2150524 | K17: 69.23958628
A18: ABSTENCIONISMO RELATIVO
A19: TOTAL | B19: =100-B15 -> 21.36565152 | C19: =100-C15 -> 18.17549449 | D19: 18.18646021 | E19: 18.88906252 | F19: =100-F15 -> 30.01334324 | G19: 31.16137853 | H19: 34.80559379 | I19: 30.88208253 | J19: 31.80636457 | K19: 34.3001852
A20: HOMBRES | B20: =100-B16 -> 19.86986247 | C20: =100-C16 -> 17.19448497 | D20: 17.56581614 | E20: 19.56830482 | F20: =100-F16 -> 31.87171272 | G20: 33.77311688 | H20: 38.14216787 | I20: 34.15029399 | J20: 34.84073186 | K20: 37.86587558
A21: MUJERES | B21: =100-B17 -> 22.91941491 | C21: 19.17224655 | D21: 18.81108284 | E21: 18.20876372 | F21: =100-F17 -> 28.13872067 | G21: 28.5415054 | H21: 31.47033022 | I21: 27.62235684 | J21: 28.7849476 | K21: 30.76041372
A24: Fuente: Tribunal Supremo de Elecciones.

Sheet G1

Sheet C2
A1: CUADRO 2
A2: COSTA RICA: PARTICIPACIÓN Y ABSTENCIONISMO EN LAS ELECCIONES PRESIDENCIALES, SEGÚN ZONA 1982 - 2018
A3: (CIFRAS ABSOLUTAS Y RELATIVAS)
A4: ZONA | B4: AÑO ELECTORAL
B5: 1982 | C5: 1986 | D5: 1990 | E5: 1994 | F5: 1998 | G5: 2002 | H5: 2006 | I5: 2010 | J5: 2014 | K5: 2018
A6: ELECTORADO
A7: TOTAL | B7: =+B8+B10+B12 -> 1261127 | C7: 1486474 | D7: 1692050 | E7: 1881348 | F7: 2045980 | G7: 2279851 | H7: 2550613 | I7: 2822491 | J7: =+J8+J10+J12+J13 -> 3078321 | K7: =+K8+K9+K10+K11+K13 -> 3322329
A8: URBANA | B8: 369561 | C8: 416101 | D8: 455890 | E8: 590779 | F8: 700383 | G8: 1046029 | H8: 1152058 | I8: 1237434 | J8: 1828213 | K8: 1229690
A9: PREDOMINANTE URBANA | B9: - | C9: - | D9: - | E9: - | F9: - | G9: - | H9: - | I9: - | J9: - | K9: 1223317
A10: RURAL | B10: 412152 | C10: 513379 | D10: 602048 | E10: 685238 | F10: 783384 | G10: 505988 | H10: 574104 | I10: 655536 | J10: 321674 | K10: 136016
A11: PREDOMINANTE RURAL | B11: - | C11: - | D11: - | E11: - | F11: - | G11: - | H11: - | I11: - | J11: - | K11: 701439
A12: MIXTA | B12: 479414 | C12: 556994 | D12: 634112 | E12: 605331 | F12: 562213 | G12: 727834 | H12: 824451 | I12: 929521 | J12: 915780 | K12: -
A13: EXTRANJERO | B13: NA | C13: NA | D13: NA | E13: NA | F13: NA | G13: NA | H13: NA | I13: NA | J13: 12654 | K13: 31867
A14: VOTOS RECIBIDOS
A15: TOTAL | B15: =+B16+B18+B20 -> 991679 | C15: 1216300 | D15: 1384326 | E15: 1525979 | F15: 1431913 | G15: 1569418 | H15: 1662857 | I15: 1950847 | J15: 2099219 | K15: =+K16+K17+K18+K19+K21 -> 2182764
A16: URBANA | B16: 295566 | C16: 340767 | D16: 372263 | E16: 473100 | F16: 486306 | G16: 732064 | H16: 774755 | I16: 873983 | J16: 1292808 | K16: 861196
A17: PREDOMINANTE URBANA | B17: - | C17: - | D17: - | E17: - | F17: - | G17: - | H17: - | I17: - | J17: - | K17: 803121
A18: RURAL | B18: 318315 | C18: 418762 | D18: 492073 | E18: 562064 | F18: 547694 | G18: 343579 | H18: 359660 | I18: 443027 | J18: 206999 | K18: 86398
A19: PREDOMINANTE RURAL | B19: - | C19: - | D19: - | E19: - | F19: - | G19: - | H19: - | I19: - | J19: - | K19: 427618
A20: MIXTA | B20: 377798 | C20: 456771 | D20: 519990 | E20: 490815 | F20: 397913 | G20: 493775 | H20: 528442 | I20: 633837 | J20: 596641 | K20: -
A21: EXTRANJERO | B21: NA | C21: NA | D21: NA | E21: NA | F21: NA | G21: NA | H21: NA | I21: NA | J21: 2771 | K21: 4431
A22: PARTICIPACIÓN RELATIVA
A23: TOTAL | B23: =+B15/B7*100 -> 78.63434848 | C23: 81.82450551 | D23: 81.81353979 | E23: 81.11093748 | F23: 69.98665676 | G23: 68.83862147 | H23: 65.19440621 | I23: 69.11791747 | J23: 68.19363543 | K23: =+K15/K7*100 -> 65.6998148
A24: URBANA | B24: =+B16/B8*100 -> 79.97759504 | C24: 81.89526101 | D24: 81.6563206 | E24: 80.080707 | F24: 69.43429524 | G24: 69.98505778 | H24: 67.24965236 | I24: 70.62865575 | J24: 70.71429861 | K24: =+K16/K8*100 -> 70.0335857
A25: PREDOMINANTE URBANA | B25: - | C25: - | D25: - | E25: - | F25: - | G25: - | H25: - | I25: - | J25: - | K25: 65.65109452
A26: RURAL | B26: =+B18/B10*100 -> 77.23242881 | C26: 81.56975646 | D26: 81.73318407 | E26: 82.02463961 | F26: 69.91386089 | G26: 67.90259848 | H26: 62.64718588 | I26: 67.58240585 | J26: 64.35055367 | K26: =+K18/K10*100 -> 63.52046818
A27: PREDOMINANTE RURAL | B27: - | C27: - | D27: - | E27: - | F27: - | G27: - | H27: - | I27: - | J27: - | K27: =+K19/K11*100 -> 60.96296328
A28: MIXTA | B28: =+B20/B12*100 -> 78.80412337 | C28: 82.0064489 | D28: 82.00286385 | E28: 81.08208567 | F28: 70.77620048 | G28: 67.84170566 | H28: 64.09622888 | I28: 68.18963746 | J28: 65.151128 | K28: -
A29: EXTRANJERO | B29: NA | C29: NA | D29: NA | E29: NA | F29: NA | G29: NA | H29: NA | I29: NA | J29: =+J21/J13*100 -> 21.898214 | K29: 13.90466627
A30: ABSTENCIONISMO RELATIVO
A31: TOTAL | B31: =100-B23 -> 21.36565152 | C31: 18.17549449 | D31: 18.18646021 | E31: 18.88906252 | F31: 30.01334324 | G31: 31.16137853 | H31: 34.80559379 | I31: 30.88208253 | J31: 31.80636457 | K31: 34.3001852
A32: URBANA | B32: =100-B24 -> 20.02240496 | C32: 18.10473899 | D32: 18.3436794 | E32: 19.919293 | F32: 30.56570476 | G32: 30.01494222 | H32: 32.75034764 | I32: 29.37134425 | J32: 29.28570139 | K32: 29.9664143
A33: PREDOMINANTE URBANA | B33: - | C33: - | D33: - | E33: - | F33: - | G33: - | H33: - | I33: - | J33: - | K33: -
A34: RURAL | B34: =100-B26 -> 22.76757119 | C34: 18.43024354 | D34: 18.26681593 | E34: 17.97536039 | F34: 30.08613911 | G34: 32.09740152 | H34: 37.35281412 | I34: 32.41759415 | J34: =100-J26 -> 35.64944633 | K34: =100-K26 -> 36.47953182
A35: PREDOMINANTE RURAL | B35: - | C35: - | D35: - | E35: - | F35: - | G35: - | H35: - | I35: - | J35: - | K35: -
A36: MIXTA | B36: =100-B28 -> 21.19587663 | C36: 17.9935511 | D36: 17.99713615 | E36: 18.91791433 | F36: 29.22379952 | G36: 32.15829434 | H36: 35.90377112 | I36: 31.81036254 | J36: 34.848872 | K36: -
A37: EXTRANJERO | B37: NA | C37: NA | D37: NA | E37: NA | F37: NA | G37: NA | H37: NA | I37: NA | J37: =100-J29 -> 78.101786 | K37: =100-K29 -> 86.09533373
A40: NOTAS: NA significa No Aplica debido que el voto en el extranjero se facultó a partir de las Elecciones Presidenciales de Febrero 2014.
A41: A partir de las elecciones presidenciales 2018, se incorpora la clasificación de la variable zona elaborada por el Instituto Nacional de Estadística y Censo (INEC) y detallada en el Manual de Clasificación Geográfica con Fines Estadísticos de Costa Rica - 2016. A partir de ello se debe entender que los segmentos o zonas pierden la comparatibilidad a partir de esta categorización, pues la metodología es distinta.
A42: Fuente: Tribunal Supremo de Elecciones.

Sheet G2

Sheet G3
A7: ZONA | B7: PARTICIPACION
A8: EXTRANJERO | B8: 13.90466627
A9: PREDOMINANTE RURAL | B9: 60.96296328
A10: RURAL | B10: 63.52046818
A11: PREDOMINANTE URBANA | B11: 65.65109452
A12: URBANA | B12: 70.0335857
A13: COSTA RICA | B13: 65.6998148

Sheet C3
A1: CUADRO 3
A2: COSTA RICA: PARTCIPACIÓN Y ABSTENCIONISMO EN LAS ELECCIONES PRESIDENCIALES, SEGÚN GRUPOS DECENALES DE EDAD, 1982 - 2018
A3: (CIFRAS ABSOLUTAS Y RELATIVAS)
A4: GRUPOS DE EDAD | B4: AÑO ELECTORAL
B5: 1982 | C5: 1986 | D5: 1990 | E5: 1994 | F5: 1998 | G5: 2002 | H5: 2006 | I5: 2010 | J5: 2014 | K5: 2018
A6: ELECTORADO
A7: TOTAL | B7: =SUM(B8:B14) -> 1261127 | C7: =SUM(C8:C14) -> 1486474 | D7: 1692050 | E7: 1881348 | F7: 2045980 | G7: 2279851 | H7: 2550613 | I7: =SUM(I8:I14) -> 2822491 | J7: =SUM(J8:J14) -> 2822491
A8: 30 Y MENOS | B8: =42006+49618+451258 -> 542882 | C8: =42553+53325+515205 -> 611083 | D8: =45241+51826+551547 -> 648614 | E8: 649569 | F8: 668013 | G8: 725375 | H8: 818971 | I8: 891512 | J8: 891512
A9: 30 - 39 | B9: 268407 | C9: 341759 | D9: 418345 | E9: 493251 | F9: 532589 | G9: 548348 | H9: 548137 | I9: 575163 | J9: 575163
A10: 40 - 49 | B10: 176949 | C10: 209948 | D10: 248952 | E10: 306196 | F10: 367294 | G10: 443516 | H10: 507614 | I10: 543575 | J10: 543575
A11: 50 - 59 | B11: 129165 | C11: 149912 | D11: 168007 | E11: 189792 | F11: 215439 | G11: 261034 | H11: 324568 | I11: 396303 | J11: 396303
A12: 60 - 69 | B12: 81880 | C12: 94309 | D12: 114892 | E12: 132358 | F12: 142329 | G12: 159922 | H12: 186816 | I12: 222481 | J12: 222481
A13: 70 - 79 | B13: 45661 | C13: 57928 | D13: 64538 | E13: 72977 | F13: 81871 | G13: 97363 | H13: 111532 | I13: 126819 | J13: 126819
A14: 80 Y MÁS | B14: =14513+1670 -> 16183 | C14: =18825+2710 -> 21535 | D14: =24848+3854 -> 28702 | E14: 37205 | F14: 38445 | G14: 44293 | H14: 52975 | I14: 66638 | J14: 66638
A15: VOTOS RECIBIDOS
A16: TOTAL | B16: =SUM(B17:B23) -> 991679 | C16: =SUM(C17:C23) -> 1216300 | D16: =SUM(D17:D23) -> 1384326 | E16: =SUM(E17:E23) -> 1525979 | F16: =SUM(F17:F23) -> 1431913 | G16: =SUM(G17:G23) -> 1569418 | H16: =SUM(H17:H23) -> 1662857 | I16: =SUM(I17:I23) -> 1950847 | J16: =SUM(J17:J23) -> 1950847
A17: 30 Y MENOS | B17: =35165+40632+346627 -> 422424 | C17: =37193+45538+419889 -> 502620 | D17: =38939+43449+448993 -> 531381 | E17: 524376 | F17: 452489 | G17: 477412 | H17: 514467 | I17: 591386 | J17: 591386
A18: 30 - 39 | B18: 210739 | C18: 277412 | D18: 341210 | E18: 401798 | F18: 372574 | G18: 379514 | H18: 355539 | I18: 395398 | J18: 395398
A19: 40 - 49 | B19: 143341 | C19: 174745 | D19: 207352 | E19: 253363 | F19: 264276 | G19: 318137 | H19: 344335 | I19: 390181 | J19: 390181
A20: 50 - 59 | B20: 106517 | C20: 126305 | D20: 141333 | E20: 157776 | F20: 158218 | G20: 188954 | H20: 223797 | I20: 289363 | J20: 289363
A21: 60 - 69 | B21: 65598 | C21: 77946 | D21: 95901 | E21: 109976 | F21: 105370 | G21: 115139 | H21: 126667 | I21: 161987 | J21: 161987
A22: 70 - 79 | B22: 33859 | C22: 44614 | D22: 49808 | E22: 56487 | F22: 58063 | G22: 67139 | H22: 71843 | I22: 86820 | J22: 86820
A23: 80 Y MÁS | B23: =8502+699 -> 9201 | C23: =11637+1021 -> 12658 | D23: =15920+1421 -> 17341 | E23: 22203 | F23: 20923 | G23: 23123 | H23: 26209 | I23: 35712 | J23: 35712
A24: PARTICIPACIÓN RELATIVA
A25: Total | B25: 78.63434848 | C25: 81.82450551 | D25: 81.81353979 | E25: 81.11093748 | F25: 69.98665676 | G25: 68.83862147 | H25: 65.19440621 | I25: 69.11791747 | J25: 68.19363543 | K25: 65.6998148
A26: MENOS DE 30 | B26: 77.81138443 | C26: 82.25069262 | D26: 81.92561369 | E26: 80.72675882 | F26: 67.73655603 | G26: 65.81588833 | H26: 62.81870787 | I26: 66.33516991 | J26: 65.46164755 | K26: 61.16685422
A27: 30 - 39 | B27: 78.51471832 | C27: 81.17181991 | D27: 81.56186879 | E27: 81.45913541 | F27: 69.9552563 | G27: 69.21042841 | H27: 64.86316377 | I27: 68.74538174 | J27: 68.0384236 | K27: 66.21009666
A28: 40 - 49 | B28: 81.00695681 | C28: 83.23251472 | D28: 83.28995148 | E28: 82.74536571 | F28: 71.95216911 | G28: 71.73067037 | H28: 67.83402349 | I28: 71.78052707 | J28: 70.06279435 | K28: 68.09981283
A29: 50 - 59 | B29: 82.46583827 | C29: 84.25276162 | D29: 84.12328058 | E29: 83.13100658 | F29: 73.43981359 | G29: 72.38673889 | H29: 68.95226886 | I29: 73.01559665 | J29: 72.08993863 | K29: 70.01552378
A30: 60 - 69 | B30: 80.11480215 | C30: 82.64958806 | D30: 83.47056366 | E30: 83.0898019 | F30: 74.03269889 | G30: 71.99697352 | H30: 67.80307897 | I30: 72.8093635 | J30: 72.25509053 | K30: 70.37025055
A31: 70 - 79 | B31: 74.15299709 | C31: 77.01629609 | D31: 77.17623726 | E31: 77.40383957 | F31: 70.92010602 | G31: 68.95740682 | H31: 64.41469713 | I31: 68.45977338 | J31: 67.52523686 | K31: 65.93935551
A32: 80 - 89 | B32: 56.85595996 | C32: 58.7787323 | D32: 60.41739252 | E32: 59.67746271 | F32: 54.42320198 | G32: 52.2046373 | H32: 49.47428032 | I32: 53.59104415 | J32: 52.53604921 | K32: 50.22575905
A33: ABSTENCIONISMO RELATIVO
A34: Total | B34: 21.36565152 | C34: 18.17549449 | D34: 18.18646021 | E34: 18.88906252 | F34: 30.01334324 | G34: 31.16137853 | H34: 34.80559379 | I34: 30.88208253 | J34: 31.80636457 | K34: 34.3001852
A35: MENOS DE 30 | B35: 22.18861557 | C35: 17.74930738 | D35: 18.07438631 | E35: 19.27324118 | F35: 32.26344397 | G35: 34.18411167 | H35: 37.18129213 | I35: 33.66483009 | J35: 34.53835245 | K35: 38.83314578
A36: 30 - 39 | B36: 21.48528168 | C36: 18.82818009 | D36: 18.43813121 | E36: 18.54086459 | F36: 30.0447437 | G36: 30.78957159 | H36: 35.13683623 | I36: 31.25461826 | J36: 31.9615764 | K36: 33.78990334
A37: 40 - 49 | B37: 18.99304319 | C37: 16.76748528 | D37: 16.71004852 | E37: 17.25463429 | F37: 28.04783089 | G37: 28.26932963 | H37: 32.16597651 | I37: 28.21947293 | J37: 29.93720565 | K37: 31.90018717
A38: 50 - 59 | B38: 17.53416173 | C38: 15.74723838 | D38: 15.87671942 | E38: 16.86899342 | F38: 26.56018641 | G38: 27.61326111 | H38: 31.04773114 | I38: 26.98440335 | J38: 27.91006137 | K38: 29.98447622
A39: 60 - 69 | B39: 19.88519785 | C39: 17.35041194 | D39: 16.52943634 | E39: 16.9101981 | F39: 25.96730111 | G39: 28.00302648 | H39: 32.19692103 | I39: 27.1906365 | J39: 27.74490947 | K39: 29.62974945
A40: 70 - 79 | B40: 25.84700291 | C40: 22.98370391 | D40: 22.82376274 | E40: 22.59616043 | F40: 29.07989398 | G40: 31.04259318 | H40: 35.58530287 | I40: 31.54022662 | J40: 32.47476314 | K40: 34.06064449
A41: 80 - 89 | B41: 43.14404004 | C41: 41.2212677 | D41: 39.58260748 | E41: 40.32253729 | F41: 45.57679802 | G41: 47.7953627 | H41: 50.52571968 | I41: 46.40895585 | J41: 47.46395079 | K41: 49.77424095
A44: NOTA: NA significa No Aplica debido que el voto en el extranjero se facultó a partir de las Elecciones Presidenciales de Febrero 2014.
A45: Fuente: Tribunal Supremo de Elecciones.

Sheet F1
A3: Fuente: Tribunal Supremo de Elecciones.

Sheet F2
A3: Fuente: Tribunal Supremo de Elecciones.

Sheet C4
A1: CUADRO 4
A2: COSTA RICA: PARTICIPACIÓN RELATIVA EN ELECCIONES PRESIDENCIALES
A3: SEGÚN PROVINCIA, 1982 - 2018
A5: PROVINCIA | B5: Año Electoral
B6: 1982 | C6: 1986 | D6: 1990 | E6: 1994 | F6: 1998 | G6: 2002 | H6: 2006 | I6: 2010 | J6: 2014 | K6: 2018
A8: COSTA RICA | B8: 78.63434848 | C8: 81.82450551 | D8: 81.8 | E8: 81.11093748 | F8: 69.98665676 | G8: 68.83862147 | H8: 65.19440621 | I8: 69.11791747 | J8: 68.19363543 | K8: 65.7
A10: SAN JOSÉ | B10: 79.0734508 | C10: 81.76452662 | D10: 81.5 | E10: 80.02248799 | F10: 69.182264 | G10: 69.31304721 | H10: 66.3921582 | I10: 69.85717786 | J10: 70.15317089 | K10: 68.4
A11: ALAJUELA | B11: 81.31811392 | C11: 84.72675486 | D11: 84.9 | E11: 84.45743173 | F11: 72.88416961 | G11: 72.18089434 | H11: 67.99779338 | I11: 71.52637754 | J11: 70.61955729 | K11: 67.9
A12: CARTAGO | B12: 81.36112814 | C12: 84.71266575 | D12: 85 | E12: 83.72462815 | F12: 74.49109799 | G12: 72.29229252 | H12: 69.98109718 | I12: 74.12358341 | J12: 73.48417295 | K12: 71.8
A13: HEREDIA | B13: 81.11815698 | C13: 84.91193305 | D13: 85.2 | E13: 84.08089744 | F13: 71.96192832 | G13: 71.70937628 | H13: 69.79019728 | I13: 73.13207249 | J13: 72.97206591 | K13: 71.6
A14: GUANACASTE | B14: 80.64954383 | C14: 83.64101802 | D14: 83.5 | E14: 84.15212983 | F14: 73.92405957 | G14: 69.81310943 | H14: 62.10845788 | I14: 66.22263937 | J14: 63.21406662 | K14: 59.4
A15: PUNTARENAS | B15: 72.07505607 | C15: 76.02002623 | D15: 76.5 | E15: 77.18656716 | F15: 65.2649403 | G15: 61.00005331 | H15: 54.91661303 | I15: 59.5741072 | J15: 58.31598516 | K15: 55.5
A16: LIMÓN | B16: 67.64234924 | C16: 72.10173689 | D16: 72 | E16: 73.42500381 | F16: 60.11625788 | G16: 58.38518527 | H16: 54.9579237 | I16: 61.44747644 | J16: 58.85512566 | K16: 57.1
A17: EXTRANJERO | B17: NA | C17: NA | D17: NA | E17: NA | F17: NA | G17: NA | H17: NA | I17: NA | J17: 21.898214 | K17: 13.9
A20: NOTA: NA significa No Aplica debido que el voto en el extranjero se facultó a partir de las Elecciones Presidenciales de Febrero 2014.
A22: Fuente: Tribunal Supremo de Elecciones.
F24: =SUM(F26:F41) -> 0

Sheet F3
A3: Fuente: Tribunal Supremo de Elecciones.

Sheet F4
A3: Fuente: Tribunal Supremo de Elecciones.

Sheet C5
A1: CUADRO 5
A2: COSTA RICA: PARTICIPACIÓN RELATIVA EN ELECCIONES PRESIDENCIALES
A3: SEGÚN PROVINCIA Y CANTÓN, 1982- 2018
A5: PROVINCIA Y CANTÓN | B5: 1982 | C5: 1986 | D5: 1990 | E5: 1994 | F5: 1998 | G5: 2002 | H5: 2006 | I5: 2010 | J5: 2014 | K5: 2018
A7: COSTA RICA | B7: 78.63434848 | C7: 81.82450551 | D7: 81.8 | E7: 81.11093748 | F7: 69.98665676 | G7: 68.83862147 | H7: 65.19440621 | I7: 69.11791747 | J7: 68.19363543 | K7: 65.7
A8: SAN JOSÉ | B8: 79.0734508 | C8: 81.76452662 | D8: 81.5 | E8: 80.02248799 | F8: 69.182264 | G8: 69.31304721 | H8: 66.3921582 | I8: 69.85717786 | J8: 70.15317089 | K8: 68.4
A9: SAN JOSÉ | B9: 78.25432566 | C9: 79.86746573 | D9: 79.5 | E9: 77.24391523 | F9: 66.94994468 | G9: 67.97788495 | H9: 65.11966467 | I9: 67.83835559 | J9: 68.94256862 | K9: 66.57287323
A10: ESCAZÚ | B10: 77.84965936 | C10: 80.87701467 | D10: 81.7 | E10: 79.81054554 | F10: 69.86080996 | G10: 70.73760201 | H10: 69.67078304 | I10: 72.68096851 | J10: 73.12358721 | K10: 71.26099082
A11: DESAMPARADOS | B11: 80.19813921 | C11: 82.72424303 | D11: 82.8 | E11: 80.96818494 | F11: 69.14654027 | G11: 68.710054 | H11: 66.09355227 | I11: 69.6169484 | J11: 70.00039411 | K11: 68.2170204
A12: PURISCAL | B12: 83.18185021 | C12: 86.32473254 | D12: 86.5 | E12: 86.07452437 | F12: 77.52944399 | G12: 76.00610532 | H12: 70.63037249 | I12: 72.65457543 | J12: 71.46150648 | K12: 69.71221503
A13: TARRAZÚ | B13: 82.14204156 | C13: 82.42164688 | D13: 81.5 | E13: 80.73270014 | F13: 74.31701379 | G13: 69.09526663 | H13: 62.59187203 | I13: 67.02004626 | J13: 65.44772212 | K13: 65.50705612
A14: ASERRÍ | B14: 77.62311136 | C14: 82.92611127 | D14: 83.6 | E14: 83.77648806 | F14: 69.66622378 | G14: 66.77548185 | H14: 65.01030178 | I14: 68.79403794 | J14: 69.09798864 | K14: 67.20416307
A15: MORA | B15: 81.35072909 | C15: 84.73532001 | D15: 84.4 | E15: 83.61841462 | F15: 71.67913105 | G15: 72.77173913 | H15: 67.55186161 | I15: 72.46963563 | J15: 72.01667535 | K15: 68.92467581
A16: GOICOECHEA | B16: 78.94440059 | C16: 81.86680469 | D16: 81.7 | E16: 79.69803755 | F16: 67.87985815 | G16: 68.82028079 | H16: 66.33589284 | I16: 69.73140737 | J16: 70.71641144 | K16: 68.94223722
A17: SANTA ANA | B17: 80.4731433 | C17: 83.98553636 | D17: 84.1 | E17: 81.74289479 | F17: 71.77498133 | G17: 70.97812098 | H17: 69.32706687 | I17: 73.10804379 | J17: 73.23539834 | K17: 72.19877972
A18: ALAJUELITA | B18: 75.3435503 | C18: 79.29892892 | D18: 81 | E18: 78.04260339 | F18: 63.06399878 | G18: 63.06768078 | H18: 61.4881763 | I18: 65.85272193 | J18: 65.14906402 | K18: 63.94298533
A19: VÁZQUEZ DE CORONADO | B19: 78.81203394 | C19: 83.48649209 | D19: 83.9 | E19: 82.97646516 | F19: 72.09501225 | G19: 72.92115467 | H19: 70.78995399 | I19: 73.89274786 | J19: 73.88722243 | K19: 72.34185734
A20: ACOSTA | B20: 77.38341969 | C20: 84.23212861 | D20: 83.6 | E20: 84.74920267 | F20: 79.35829849 | G20: 75.16790081 | H20: 68.79785303 | I20: 71.21653292 | J20: 69.71255868 | K20: 66.11873796
A21: TIBÁS | B21: 80.05698006 | C21: 81.75358394 | D21: 81.9 | E21: 79.63027128 | F21: 70.04033448 | G21: 70.68101304 | H21: 68.11581066 | I21: 71.0308408 | J21: 71.66186532 | K21: 69.70249263
A22: MORAVIA | B22: 80.53662164 | C22: 83.56836297 | D22: 83.5 | E22: 81.91167812 | F22: 71.91963036 | G22: 72.4796884 | H22: 70.84612854 | I22: 73.34204837 | J22: 74.67242723 | K22: 73.37646181
A23: MONTES DE OCA | B23: 79.80022646 | C23: 82.04608028 | D23: 81.9 | E23: 80.42172405 | F23: 71.2870997 | G23: 73.50956429 | H23: 71.25523327 | I23: 74.36252704 | J23: 75.21752754 | K23: 73.70904201
A24: TURRUBARES | B24: 80.34632035 | C24: 85.67765568 | D24: 86.3 | E24: 87.6893329 | F24: 79.52920143 | G24: 76.21750822 | H24: 74.38956715 | I24: 75.19555892 | J24: 68.75428571 | K24: 63.66209449
A25: DOTA | B25: 84.30747432 | C25: 81.44230769 | D25: 81 | E25: 80.80951033 | F25: 72.36949986 | G25: 68.1177977 | H25: 62.47706422 | I25: 67.13301316 | J25: 68.9004429 | K25: 66.22349982
A26: CURRIDABAT | B26: 82.04138357 | C26: 84.08070441 | D26: 83.5 | E26: 81.6473656 | F26: 69.74350543 | G26: 70.59019581 | H26: 69.40877837 | I26: 72.70286871 | J26: 73.43202939 | K26: 71.70019853
A27: PÉREZ ZELEDÓN | B27: 78.08665099 | C27: 82.60075981 | D27: 79.5 | E27: 81.00754813 | F27: 68.61214374 | G27: 66.92427632 | H27: 60.65021757 | I27: 67.06371793 | J27: 65.52474685 | K27: 64.9603235
A28: LEÓN CORTÉS | B28: 80.88779285 | C28: 85.64017431 | D28: 83.6 | E28: 85.19382627 | F28: 79.46201996 | G28: 74.16012559 | H28: 67.37698023 | I28: 67.53652141 | J28: 67.49112562 | K28: 64.21281216
A29: ALAJUELA | B29: 81.31811392 | C29: 84.72675486 | D29: 84.9 | E29: 84.45743173 | F29: 72.88416961 | G29: 72.18089434 | H29: 67.99779338 | I29: 71.52637754 | J29: 70.61955729 | K29: 67.9
A30: ALAJUELA | B30: 79.8342699 | C30: 83.09333722 | D30: 83.9 | E30: 82.65273553 | F30: 68.91837454 | G30: 68.818531 | H30: 65.81935551 | I30: 70.09112923 | J30: 69.08739391 | K30: 67.14711138
A31: SAN RAMÓN | B31: 83.33562554 | C31: 85.1764524 | D31: 84.3 | E31: 83.68249955 | F31: 72.74273176 | G31: 72.8926097 | H31: 69.76704461 | I31: 73.46602842 | J31: 73.14998192 | K31: 69.77793854
A32: GRECIA | B32: 83.94027336 | C32: 87.33550646 | D32: 87.6 | E32: 87.07154431 | F32: 77.15864995 | G32: 74.91752474 | H32: 70.40650407 | I32: 73.53369654 | J32: 73.89786754 | K32: 71.41266762
A33: SAN MATEO | B33: 84.45297505 | C33: 88.63930886 | D33: 89.2 | E33: 90.24842418 | F33: 79.63347165 | G33: 75.60591753 | H33: 68.64676905 | I33: 70.27382833 | J33: 69.53511375 | K33: 65.03694046
A34: ATENAS | B34: 84.3068672 | C34: 87.81825709 | D34: 87.3 | E34: 88.3716921 | F34: 77.80708064 | G34: 76.33526851 | H34: 74.83647557 | I34: 76.17239197 | J34: 75.34217619 | K34: 71.98590239
A35: NARANJO | B35: 84.57296169 | C35: 87.42947702 | D35: 86 | E35: 85.81733319 | F35: 74.15103653 | G35: 73.38759897 | H35: 68.84381987 | I35: 72.74693583 | J35: 73.24546732 | K35: 69.86973759
A36: PALMARES | B36: 88.16568047 | C36: 90.09001895 | D36: 87.4 | E36: 85.94506213 | F36: 73.66588631 | G36: 78.35443698 | H36: 73.56149441 | I36: 74.81433905 | J36: 77.21509656 | K36: 73.06802885
A37: POÁS | B37: 82.90585835 | C37: 86.72371638 | D37: 88.3 | E37: 87.27674461 | F37: 74.73213532 | G37: 76.09602576 | H37: 72.97280202 | I37: 76.32374342 | J37: 75.87481643 | K37: 73.03514963
A38: OROTINA | B38: 87.35980061 | C38: 87.55481627 | D38: 87.3 | E38: 88.02153432 | F38: 77.55705333 | G38: 73.18072036 | H38: 67.11777615 | I38: 67.4812771 | J38: 63.77160669 | K38: 60.29242016
A39: SAN CARLOS | B39: 79.01045501 | C39: 84.41752325 | D39: 85.4 | E39: 85.7568834 | F39: 76.11711139 | G39: 74.80274761 | H39: 68.74099568 | I39: 71.97341809 | J39: 70.32302307 | K39: 68.46452328
A40: ZARCERO | B40: 90.16224569 | C40: 92.08776596 | D40: 92.9 | E40: 92.79661017 | F40: 83.29264039 | G40: 84.73825716 | H40: 81.13613542 | I40: 82.36868944 | J40: 82.62661955 | K40: 79.31757951
A41: VALVERDE VEGA | B41: 84.19876204 | C41: 86.78760177 | D41: 84.5 | E41: 82.08973129 | F41: 74.7519786 | G41: 70.84388613 | H41: 68.42245989 | I41: 72.50257467 | J41: 70.35740336 | K41: 66.85983092
A42: UPALA | B42: 67.8216455 | C42: 72.88433685 | D42: 76.9 | E42: 78.24968771 | F42: 66.99119765 | G42: 64.16860394 | H42: 56.65054085 | I42: 62.01199075 | J42: 58.79172257 | K42: 55.1883465
A43: LOS CHILES | B43: 67.03259005 | C43: 77.7287221 | D43: 80.5 | E43: 79.34782609 | F43: 68.56749732 | G43: 65.94693762 | H43: 59.31926652 | I43: 64.42692137 | J43: 60.30410252 | K43: 53.48090849
A44: GUATUSO | B44: 71.45200984 | C44: 79.20261827 | D44: 79.3 | E44: 81.94726166 | F44: 72.93629251 | G44: 69.42087241 | H44: 61.24599787 | I44: 65.28812006 | J44: 64.28067345 | K44: 60.13673655
A45: CARTAGO | B45: 81.36112814 | C45: 84.71266575 | D45: 85 | E45: 83.72462815 | F45: 74.49109799 | G45: 72.29229252 | H45: 69.98109718 | I45: 74.12358341 | J45: 73.48417295 | K45: 71.8
A46: CARTAGO | B46: 83.52643822 | C46: 86.19264159 | D46: 86.3 | E46: 85.12235246 | F46: 76.30821927 | G46: 75.43040045 | H46: 72.71401595 | I46: 76.35515091 | J46: 76.64172462 | K46: 74.68169914
A47: PARAÍSO | B47: 80.18518519 | C47: 83.84517536 | D47: 84.7 | E47: 82.7954635 | F47: 74.09448212 | G47: 69.68434969 | H47: 67.86144406 | I47: 74.04182519 | J47: 74.83488372 | K47: 72.73563317
A48: LA UNIÓN | B48: 79.44038929 | C48: 83.27321716 | D48: 83.8 | E48: 81.83384939 | F48: 70.23389857 | G48: 69.55482054 | H48: 67.48110388 | I48: 71.69827631 | J48: 71.73538586 | K48: 69.98705787
A49: JIMÉNEZ | B49: 82.52903648 | C49: 84.92877493 | D49: 83.3 | E49: 83.11045072 | F49: 75.73113787 | G49: 70.80148251 | H49: 70.02324598 | I49: 74.89660479 | J49: 71.58648744 | K49: 69.86074271
A50: TURRIALBA | B50: 79.09101078 | C50: 82.7854921 | D50: 83.1 | E50: 82.15305691 | F50: 73.68224485 | G50: 70.489988 | H50: 66.95174744 | I50: 70.40032664 | J50: 67.01796758 | K50: 66.40622269
A51: ALVARADO | B51: 78.96917897 | C51: 83.51182508 | D51: 83.6 | E51: 84.257285 | F51: 74.97048406 | G51: 71.35061392 | H51: 69.1349759 | I51: 73.61927145 | J51: 71.05651624 | K51: 69.49952786
A52: OREAMUNO | B52: 80.84333277 | C52: 84.71007904 | D52: 85.7 | E52: 84.25453361 | F52: 74.6176293 | G52: 71.36720614 | H52: 70.96724999 | I52: 74.49843365 | J52: 73.87068733 | K52: 72.19214408
A53: EL GUARCO | B53: 83.77457981 | C53: 87.49467949 | D53: 87.6 | E53: 86.34065121 | F53: 77.60240306 | G53: 74.95008984 | H53: 72.76983207 | I53: 77.34851868 | J53: 76.17097179 | K53: 74.1
A54: HEREDIA | B54: 81.11815698 | C54: 84.91193305 | D54: 85.2 | E54: 84.08089744 | F54: 71.96192832 | G54: 71.70937628 | H54: 69.79019728 | I54: 73.13207249 | J54: 72.97206591 | K54: 71.6
A55: HEREDIA | B55: 83.2326136 | C55: 86.57458871 | D55: 86 | E55: 84.16481559 | F55: 71.74345969 | G55: 71.8787932 | H55: 69.68957553 | I55: 72.62013229 | J55: 73.0419426 | K55: 71.48798378
A56: BARVA | B56: 83.92282958 | C56: 86.97041636 | D56: 87.4 | E56: 86.24807138 | F56: 74.82153306 | G56: 74.68513222 | H56: 72.95085479 | I56: 75.50959899 | J56: 75.60156873 | K56: 75.07472702
A57: SANTO DOMINGO | B57: 79.90545509 | C57: 84.67859175 | D57: 85 | E57: 84.43470729 | F57: 74.58978184 | G57: 73.93117831 | H57: 72.53260225 | I57: 75.73159428 | J57: 75.69642802 | K57: 74.66662793
A58: SANTA BÁRBARA | B58: 82.02840266 | C58: 86.59316862 | D58: 87.2 | E58: 85.60767591 | F58: 71.43847487 | G58: 72.64587465 | H58: 70.32541322 | I58: 73.70382008 | J58: 72.28827954 | K58: 71.42002542
A59: SAN RAFAEL | B59: 79.76542137 | C59: 83.950797 | D59: 84.3 | E59: 83.91046816 | F59: 70.59579499 | G59: 70.28385834 | H59: 68.50326722 | I59: 71.71647694 | J59: 71.70508917 | K59: 71.44229411
A60: SAN ISIDRO | B60: 78.77461707 | C60: 83.72850679 | D60: 84.2 | E60: 83.73113855 | F60: 71.74390244 | G60: 71.55896691 | H60: 69.44169738 | I60: 74.5703125 | J60: 74.61904434 | K60: 72.6
A61: BELÉN | B61: 85.5035686 | C61: 88.25203252 | D61: 88.1 | E61: 86.32268632 | F61: 75.89663417 | G61: 76.27823534 | H61: 73.58436742 | I61: 76.5729585 | J61: 76.9199583 | K61: 75.10269405
A62: FLORES | B62: 84.94822485 | C62: 87.58457907 | D62: 87.9 | E62: 87.80248127 | F62: 74.95414947 | G62: 75 | H62: 73.34665856 | I62: 76.62638019 | J62: 77.15914363 | K62: 75.82569082
A63: SAN PABLO | B63: 81.93708024 | C63: 85.7891012 | D63: 86.6 | E63: 85.79875624 | F63: 73.52729885 | G63: 74.73400154 | H63: 73.4198906 | I63: 75.70681805 | J63: 75.09816591 | K63: 74.29157175
A64: SARAPIQUÍ | B64: 65.78498294 | C64: 71.36607241 | D64: 73.9 | E64: 74.32390904 | F64: 62.95712484 | G64: 59.30515835 | H64: 57.84683988 | I64: 63.98651529 | J64: 62.40803574 | K64: 59.51903207
A65: GUANACASTE | B65: 80.64954383 | C65: 83.64101802 | D65: 83.5 | E65: 84.15212983 | F65: 73.92405957 | G65: 69.81310943 | H65: 62.10845788 | I65: 66.22263937 | J65: 63.21406662 | K65: 59.4
A66: LIBERIA | B66: 81.08502362 | C66: 84.0035693 | D66: 83.5 | E66: 83.56077281 | F66: 70.70223143 | G66: 65.48830965 | H66: 55.91754683 | I66: 61.37692141 | J66: 59.4593284 | K66: 57.5
A67: NICOYA | B67: 80.65382893 | C67: 82.3286104 | D67: 83.7 | E67: 83.61489844 | F67: 75.12856653 | G67: 74.82357973 | H67: 66.25695807 | I67: 69.9739948 | J67: 67.90600522 | K67: 63.27616073
A68: SANTA CRUZ | B68: 83.89497744 | C68: 84.79593995 | D68: 83.9 | E68: 85.31688998 | F68: 73.47956132 | G68: 70.31927781 | H68: 60.63892044 | I68: 67.06631143 | J68: 61.68587439 | K68: 58.09472839
A69: BAGACES | B69: 76.76179383 | C69: 82.64770611 | D69: 83.2 | E69: 82.9312763 | F69: 72.20630372 | G69: 64.78205573 | H69: 61.88108556 | I69: 64.51317716 | J69: 60.91917082 | K69: 57.88396902
A70: CARRILLO | B70: 82.87256306 | C70: 86.4769363 | D70: 84.8 | E70: 84.97405058 | F70: 73.34486909 | G70: 67.21736756 | H70: 57.93692897 | I70: 62.80450358 | J70: 59.04869252 | K70: 55.68916526
A71: CAÑAS | B71: 79.25761644 | C71: 82.37704918 | D71: 80.4 | E71: 81.54452457 | F71: 70.40694433 | G71: 65.36193791 | H71: 62.04753668 | I71: 62.63401488 | J71: 61.87093275 | K71: 56.53624974
A72: ABANGARES | B72: 83.74485597 | C72: 84.39115451 | D72: 84.5 | E72: 86.50299255 | F72: 79.60286817 | G72: 71.77667126 | H72: 66.90460114 | I72: 68.00801324 | J72: 65.94797281 | K72: 60.55841293
A73: TILARÁN | B73: 80.78619126 | C73: 86.96416795 | D73: 85.9 | E73: 87.13643178 | F73: 78.97294207 | G73: 74.25912541 | H73: 69.69316947 | I73: 72.30675593 | J73: 70.34390037 | K73: 67.35331251
A74: NANDAYURE | B74: 75.3604194 | C74: 79.50387051 | D74: 81.2 | E74: 82.76441903 | F74: 73.09195988 | G74: 71.32477188 | H74: 66.56474545 | I74: 72.30040595 | J74: 70.77327986 | K74: 65.86720227
A75: LA CRUZ | B75: 71.92569335 | C75: 77.42305926 | D75: 79.6 | E75: 81.96202532 | F75: 73.74245473 | G75: 70.44730857 | H75: 59.12437549 | I75: 63.68975069 | J75: 56.84123179 | K75: 51.78530293
A76: HOJANCHA | B76: 77.71260997 | C76: 85.2966222 | D76: 85.5 | E76: 84.47368421 | F76: 79.14220066 | G76: 75.93913457 | H76: 69.9103139 | I76: 75.03546099 | J76: 72.64443229 | K76: 67.30961091
A77: PUNTARENAS | B77: 72.07505607 | C77: 76.02002623 | D77: 76.5 | E77: 77.18656716 | F77: 65.2649403 | G77: 61.00005331 | H77: 54.91661303 | I77: 59.5741072 | J77: 58.31598516 | K77: 55.5
A78: PUNTARENAS | B78: 75.77829196 | C78: 78.56948229 | D78: 78.2 | E78: 78.83943404 | F78: 67.25163057 | G78: 61.9120581 | H78: 55.55922375 | I78: 61.00600029 | J78: 60.33317121 | K78: 57.01216343
A79: ESPARZA | B79: 84.99278499 | C79: 88.14242526 | D79: 87.8 | E79: 87.79265737 | F79: 77.63048882 | G79: 73.60733209 | H79: 68.53686058 | I79: 69.39780124 | J79: 68.64896354 | K79: 65.63855208
A80: BUENOS AIRES | B80: 67.12220242 | C80: 73.51892589 | D80: 75.4 | E80: 76.16504285 | F80: 64.38529057 | G80: 62.42181893 | H80: 53.38107639 | I80: 58.23107809 | J80: 56.67500417 | K80: 52.67552776
A81: MONTES DE ORO | B81: 80.69032102 | C81: 85.58707807 | D81: 84.6 | E81: 86.95728599 | F81: 76.72301691 | G81: 71.99762188 | H81: 68.38897721 | I81: 67.54324451 | J81: 69.30116473 | K81: 66.56576506
A82: OSA | B82: 67.73229262 | C82: 68.08978539 | D82: 70.2 | E82: 73.0454207 | F82: 61.70523244 | G82: 58.45223223 | H82: 50.07046137 | I82: 59.14968223 | J82: 55.81383773 | K82: 51.8099955
A83: QUEPOS | B83: 74.05310689 | C83: 76.88499619 | D83: 76.8 | E83: 78.12565445 | F83: 64.10501193 | G83: 57.36206897 | H83: 52.63764774 | I83: 58.52115703 | J83: 55.53398058 | K83: 54.5
A84: GOLFITO | B84: 64.41318328 | C84: 67.85496442 | D84: 68.8 | E84: 70.44143681 | F84: 57.43877441 | G84: 52.9684001 | H84: 48.13709532 | I84: 54.28102564 | J84: 53.62734289 | K84: 49.95433481
A85: COTO BRUS | B85: 66.98249071 | C85: 76.72228844 | D85: 77.2 | E85: 73.24806692 | F85: 60.37512993 | G85: 56.282688 | H85: 49.4195142 | I85: 56.66135984 | J85: 56.90172408 | K85: 55.57932026
A86: PARRITA | B86: 74.73519027 | C86: 78.99204244 | D86: 79.1 | E86: 81.28150919 | F86: 73.65942579 | G86: 64.78711162 | H86: 62.4490835 | I86: 64.54803746 | J86: 59.46145334 | K86: 58.44673083
A87: CORREDORES | B87: 68.3104598 | C87: 72.04056291 | D87: 72.6 | E87: 75.21887024 | F87: 60.26989693 | G87: 58.8810326 | H87: 55.02808404 | I87: 54.22716887 | J87: 53.85579333 | K87: 51.90117964
A88: GARABITO | B88: 79.30049964 | C88: 83.25333333 | D88: 81 | E88: 82.10103714 | F88: 73.63045497 | G88: 66.68960771 | H88: 55.50007343 | I88: 60.2459501 | J88: 54.08887987 | K88: 52.026166
A89: LIMÓN | B89: 67.64234924 | C89: 72.10173689 | D89: 72 | E89: 73.42500381 | F89: 60.11625788 | G89: 58.38518527 | H89: 54.9579237 | I89: 61.44747644 | J89: 58.85512566 | K89: 57.1
A90: LIMÓN | B90: 68.57019872 | C90: 71.52977443 | D90: 70.5 | E90: 69.38250233 | F90: 57.80831389 | G90: 56.43737605 | H90: 51.87366728 | I90: 57.77705132 | J90: 55.8227244 | K90: 54
A91: POCOCÍ | B91: 65.58786485 | C91: 73.28585961 | D91: 74.7 | E91: 76.29509296 | F91: 60.90153592 | G91: 58.4020315 | H91: 57.6479704 | I91: 64.51171447 | J91: 62.73157036 | K91: 60.8
A92: SIQUIRRES | B92: 69.08376006 | C92: 72.66147754 | D92: 71.7 | E92: 75.5416057 | F92: 61.40035907 | G92: 60.67296786 | H92: 53.80856193 | I92: 60.01004698 | J92: 57.54098799 | K92: 57.4
A93: TALAMANCA | B93: 64.55361859 | C93: 63.72730641 | D93: 65 | E93: 67.0961908 | F93: 56.64524155 | G93: 56.46371977 | H93: 55.93803787 | I93: 59.21884357 | J93: 52.91372638 | K93: 50.4
A94: MATINA | B94: 67.9245283 | C94: 73.24907846 | D94: 73.2 | E94: 76.13996993 | F94: 64.16823132 | G94: 60.81646424 | H94: 56.99340872 | I94: 64.23450959 | J94: 59.00589807 | K94: 54.4
A95: GUÁCIMO | B95: 68.53654767 | C95: 74.26996599 | D95: 74.1 | E95: 76.87861272 | F95: 61.46214795 | G95: 59.72571429 | H95: 54.73114005 | I95: 62.86558602 | J95: 59.78916813 | K95: 59
A97: EXTRANJERO | B97: NA | C97: NA | D97: NA | E97: NA | F97: NA | G97: NA | H97: NA | I97: NA | J97: 21.898214 | K97: 13.9
A100: NOTA: NA significa No Aplica debido que el voto en el extranjero se facultó a partir de las Elecciones Presidenciales de Febrero 2014..
A102: Fuente: Tribunal Supremo de Elecciones.

Sheet F5
A3: Fuente: Tribunal Supremo de Elecciones.

Sheet F6
A3: Fuente: Tribunal Supremo de Elecciones.

Sheet F7
A3: Fuente: Tribunal Supremo de Elecciones.

Sheet F8
A3: Fuente: Tribunal Supremo de Elecciones.

Sheet F9
A3: Fuente: Tribunal Supremo de Elecciones.

Sheet F10
A3: Fuente: Tribunal Supremo de Elecciones.

Sheet F11
A3: Fuente: Tribunal Supremo de Elecciones.

Sheet F12
A3: Fuente: Tribunal Supremo de Elecciones.

Sheet F13
A3: Fuente: Tribunal Supremo de Elecciones.

Sheet F14
A3: Fuente: Tribunal Supremo de Elecciones.

Sheet F15
A3: Fuente: Tribunal Supremo de Elecciones.

Sheet F16
A3: Fuente: Tribunal Supremo de Elecciones.

Sheet F17
A3: Fuente: Tribunal Supremo de Elecciones.

Sheet F18
A2: Fuente: Tribunal Supremo de Elecciones.

Sheet F19
A3: Fuente: Tribunal Supremo de Elecciones.

Sheet F20
A3: Fuente: Tribunal Supremo de Elecciones.

Sheet F21
A3: Fuente: Tribunal Supremo de Elecciones.

Sheet F22
A3: Fuente: Tribunal Supremo de Elecciones.

Sheet F23
A3: Fuente: Tribunal Supremo de Elecciones.

Sheet F24
A3: Fuente: Tribunal Supremo de Elecciones.

Sheet F25
A3: Fuente: Tribunal Supremo de Elecciones.

Sheet F26
A2: Fuente: Tribunal Supremo de Elecciones.
